[Event "Titled Tuesday Blitz December 20 Late 2022"]
[White "Blanco Acevedo, Cristobal Jose"]
[Black "benny_aizenberg"]
[WhiteFideId "3900525"]
[WhiteElo "2273"]
[BlackElo "2403"]
[Result "0-1"]
[Round "09"]
[TimeControl "180+1"]
[Date "2022.12.21"]
[WhiteClock "0:00:03"]
[BlackClock "0:00:45"]

1. e4 {[%clk 0:01:25]}  c5 {[%clk 0:02:58]} 2. Nf3 {[%clk 0:01:25]}  d6 {[%clk 0:02:58]} 3. d4 {[%clk 0:01:25]}  cxd4 {[%clk 0:02:59]} 4. Nxd4 {[%clk 0:01:25]}  Nf6 {[%clk 0:02:59]} 5. Nc3 {[%clk 0:01:26]}  a6 {[%clk 0:03:00]} 6. Be2 {[%clk 0:01:26]}  e5 {[%clk 0:03:00]} 7. Nb3 {[%clk 0:01:27]}  Be7 {[%clk 0:03:00]} 8. O-O {[%clk 0:01:27]}  O-O {[%clk 0:03:00]} 9. Bf3 {[%clk 0:01:28]}  Be6 {[%clk 0:02:57]} 10. a4 {[%clk 0:01:28]}  Nbd7 {[%clk 0:02:56]} 11. a5 {[%clk 0:01:27]}  b5 {[%clk 0:02:53]} 12. Re1 {[%clk 0:01:22]}  Qc7 {[%clk 0:02:51]} 13. Be3 {[%clk 0:01:16]}  Rac8 {[%clk 0:02:47]} 14. Re2 {[%clk 0:01:13]}  Nc5 {[%clk 0:02:23]} 15. Nxc5 {[%clk 0:01:07]}  dxc5 {[%clk 0:02:23]} 16. Rd2 {[%clk 0:01:08]}  Rfd8 {[%clk 0:02:21]} 17. Nd5 {[%clk 0:01:01]}  Bxd5 {[%clk 0:02:19]} 18. exd5 {[%clk 0:01:01]}  e4 {[%clk 0:02:18]} 19. Be2 {[%clk 0:01:01]}  Qe5 {[%clk 0:02:18]} 20. c4 {[%clk 0:01:00]}  b4 {[%clk 0:02:08]} 21. g3 {[%clk 0:00:59]}  Ne8 {[%clk 0:01:48]} 22. Bg4 {[%clk 0:00:55]}  f5 {[%clk 0:01:47]} 23. Bh3 {[%clk 0:00:52]}  Nd6 {[%clk 0:01:43]} 24. Bf4 {[%clk 0:00:51]}  Qf6 {[%clk 0:01:43]} 25. b3 {[%clk 0:00:46]}  Rf8 {[%clk 0:01:40]} 26. Be3 {[%clk 0:00:36]}  g5 {[%clk 0:01:29]} 27. f4 {[%clk 0:00:35]}  exf3 {[%clk 0:01:26]} 28. Rc2 {[%clk 0:00:20]}  Ne4 {[%clk 0:01:24]} 29. Raa2 {[%clk 0:00:15]}  Nc3 {[%clk 0:01:21]} 30. Qd2 {[%clk 0:00:13]}  Nxa2 {[%clk 0:01:18]} 31. Rxa2 {[%clk 0:00:12]}  g4 {[%clk 0:01:13]} 32. Bf1 {[%clk 0:00:12]}  Bd6 {[%clk 0:01:13]} 33. Bg5 {[%clk 0:00:10]}  Qc3 {[%clk 0:01:10]} 34. Qf2 {[%clk 0:00:09]}  Qxb3 {[%clk 0:01:04]} 35. Rb2 {[%clk 0:00:09]}  Qc3 {[%clk 0:01:03]} 36. Rc2 {[%clk 0:00:09]}  Qg7 {[%clk 0:00:59]} 37. Bc1 {[%clk 0:00:04]}  Be5 {[%clk 0:00:57]} 38. Kh1 {[%clk 0:00:05]}  b3 {[%clk 0:00:57]} 39. Rd2 {[%clk 0:00:03]}  Bd4 {[%clk 0:00:54]} 40. Qe1 {[%clk 0:00:02]}  b2 {[%clk 0:00:52]} 41. Bxb2 {[%clk 0:00:02]}  Bxb2 {[%clk 0:00:52]} 42. Qe6+ {[%clk 0:00:02]}  Kh8 {[%clk 0:00:53]} 43. d6 {[%clk 0:00:03]}  Qe5 {[%clk 0:00:45]} 0-1


[Site "https://www.chess.com"]

[Event "Titled Tuesday Blitz December 20 Late 2022"]
[White "Bogaudinov, Rushan"]
[Black "Kaplan, Avi Harrison"]
[WhiteFideId "4129288"]
[BlackFideId "30934559"]
[WhiteElo "2028"]
[BlackElo "1983"]
[Result "0-1"]
[Round "09"]
[TimeControl "180+1"]
[Date "2022.12.21"]
[WhiteClock "0:00:03"]
[BlackClock "0:00:09"]

1. d4 {[%clk 0:03:00]}  Nf6 {[%clk 0:02:58]} 2. Nf3 {[%clk 0:02:59]}  b5 {[%clk 0:02:58]} 3. g3 {[%clk 0:02:59]}  Bb7 {[%clk 0:02:58]} 4. Bg2 {[%clk 0:03:00]}  e6 {[%clk 0:02:56]} 5. O-O {[%clk 0:03:00]}  c5 {[%clk 0:02:57]} 6. a4 {[%clk 0:02:54]}  b4 {[%clk 0:02:55]} 7. e3 {[%clk 0:02:48]}  a5 {[%clk 0:02:53]} 8. Nbd2 {[%clk 0:02:47]}  Qc7 {[%clk 0:02:48]} 9. Re1 {[%clk 0:02:41]}  d6 {[%clk 0:02:46]} 10. c4 {[%clk 0:02:37]}  Be7 {[%clk 0:02:44]} 11. b3 {[%clk 0:02:37]}  O-O {[%clk 0:02:43]} 12. Bb2 {[%clk 0:02:37]}  Nbd7 {[%clk 0:02:42]} 13. Qe2 {[%clk 0:02:33]}  Rac8 {[%clk 0:02:37]} 14. Rad1 {[%clk 0:02:31]}  Rfd8 {[%clk 0:02:37]} 15. e4 {[%clk 0:02:28]}  cxd4 {[%clk 0:02:32]} 16. Nxd4 {[%clk 0:02:28]}  e5 {[%clk 0:02:21]} 17. Nb5 {[%clk 0:02:20]}  Qb6 {[%clk 0:02:17]} 18. h3 {[%clk 0:02:05]}  Nc5 {[%clk 0:01:56]} 19. Kh2 {[%clk 0:02:02]}  Ne6 {[%clk 0:01:39]} 20. Nf1 {[%clk 0:01:57]}  Ng5 {[%clk 0:01:28]} 21. f3 {[%clk 0:01:50]}  h5 {[%clk 0:01:24]} 22. Bc1 {[%clk 0:01:49]}  Ne6 {[%clk 0:01:23]} 23. Be3 {[%clk 0:01:48]}  Qa6 {[%clk 0:01:18]} 24. h4 {[%clk 0:01:45]}  Bc6 {[%clk 0:01:17]} 25. Bh3 {[%clk 0:01:42]}  Rb8 {[%clk 0:01:08]} 26. Rd2 {[%clk 0:01:23]}  Nc5 {[%clk 0:00:55]} 27. Rb1 {[%clk 0:01:19]}  Bxb5 {[%clk 0:00:48]} 28. axb5 {[%clk 0:01:17]}  Qb6 {[%clk 0:00:47]} 29. Ra2 {[%clk 0:01:06]}  Qc7 {[%clk 0:00:46]} 30. Nd2 {[%clk 0:01:00]}  Ra8 {[%clk 0:00:41]} 31. Rba1 {[%clk 0:00:57]}  Nfd7 {[%clk 0:00:38]} 32. f4 {[%clk 0:00:36]}  exf4 {[%clk 0:00:36]} 33. gxf4 {[%clk 0:00:34]}  Bf6 {[%clk 0:00:36]} 34. Rg1 {[%clk 0:00:30]}  Qb7 {[%clk 0:00:31]} 35. Bg2 {[%clk 0:00:28]}  g6 {[%clk 0:00:29]} 36. e5 {[%clk 0:00:27]}  Qb8 {[%clk 0:00:24]} 37. Bxa8 {[%clk 0:00:26]}  Qxa8 {[%clk 0:00:24]} 38. exf6 {[%clk 0:00:24]}  Nxf6 {[%clk 0:00:24]} 39. Qf3 {[%clk 0:00:18]}  Qc8 {[%clk 0:00:24]} 40. Bxc5 {[%clk 0:00:16]}  dxc5 {[%clk 0:00:25]} 41. Ne4 {[%clk 0:00:15]}  Ng4+ {[%clk 0:00:25]} 42. Rxg4 {[%clk 0:00:14]}  hxg4 {[%clk 0:00:26]} 43. Qxg4 {[%clk 0:00:13]}  Qc7 {[%clk 0:00:20]} 44. Ng3 {[%clk 0:00:12]}  Kh7 {[%clk 0:00:20]} 45. h5 {[%clk 0:00:12]}  Rd3 {[%clk 0:00:16]} 46. Rg2 {[%clk 0:00:11]}  Rxb3 {[%clk 0:00:15]} 47. hxg6+ {[%clk 0:00:11]}  fxg6 {[%clk 0:00:15]} 48. f5 {[%clk 0:00:11]}  gxf5 {[%clk 0:00:11]} 49. Qxf5+ {[%clk 0:00:12]}  Kg7 {[%clk 0:00:12]} 50. Qg5+ {[%clk 0:00:10]}  Kh7 {[%clk 0:00:11]} 51. b6 {[%clk 0:00:10]}  Qxb6 {[%clk 0:00:08]} 52. Qf5+ {[%clk 0:00:09]}  Qg6 {[%clk 0:00:07]} 53. Qxg6+ {[%clk 0:00:09]}  Kxg6 {[%clk 0:00:08]} 54. Ne4+ {[%clk 0:00:09]}  Kf5 {[%clk 0:00:08]} 55. Nxc5 {[%clk 0:00:10]}  Rc3 {[%clk 0:00:08]} 56. Nb7 {[%clk 0:00:08]}  a4 {[%clk 0:00:07]} 57. Na5 {[%clk 0:00:09]}  a3 {[%clk 0:00:06]} 58. Rf2+ {[%clk 0:00:10]}  Ke4 {[%clk 0:00:07]} 59. Ra2 {[%clk 0:00:07]}  Kd4 {[%clk 0:00:06]} 60. Kg2 {[%clk 0:00:07]}  Kc5 {[%clk 0:00:06]} 61. Kf2 {[%clk 0:00:07]}  Kb6 {[%clk 0:00:07]} 62. Ke2 {[%clk 0:00:02]}  Kxa5 {[%clk 0:00:07]} 63. Rd2 {[%clk 0:00:02]}  Rxc4 {[%clk 0:00:07]} 64. Rd5+ {[%clk 0:00:02]}  Ka4 {[%clk 0:00:08]} 65. Kd3 {[%clk 0:00:03]}  Rc3+ {[%clk 0:00:08]} 66. Kd2 {[%clk 0:00:04]}  a2 {[%clk 0:00:09]} 67. Rd6 {[%clk 0:00:03]}  Kb3 {[%clk 0:00:08]} 68. Ra6 {[%clk 0:00:04]}  Kb2 {[%clk 0:00:08]} 69. Kd1 {[%clk 0:00:04]}  Rc1+ {[%clk 0:00:08]} 70. Kd2 {[%clk 0:00:04]}  a1=Q {[%clk 0:00:09]} 71. Rxa1 {[%clk 0:00:03]}  Rxa1 {[%clk 0:00:09]} 0-1


[Site "https://www.chess.com"]

[Event "Titled Tuesday Blitz December 20 Late 2022"]
[White "Bryant, Todd"]
[Black "Biernacki, Mark"]
[WhiteFideId "2031299"]
[BlackFideId "2082322"]
[WhiteElo "2326"]
[BlackElo "1970"]
[Result "1-0"]
[Round "09"]
[TimeControl "180+1"]
[Date "2022.12.21"]
[WhiteClock "0:00:08"]
[BlackClock "0:00:03"]

1. e4 {[%clk 0:03:00]}  c5 {[%clk 0:02:59]} 2. Nf3 {[%clk 0:02:59]}  e6 {[%clk 0:02:59]} 3. d4 {[%clk 0:03:00]}  cxd4 {[%clk 0:03:00]} 4. Nxd4 {[%clk 0:03:00]}  Nf6 {[%clk 0:03:00]} 5. Nc3 {[%clk 0:03:00]}  Nc6 {[%clk 0:03:00]} 6. Be3 {[%clk 0:03:01]}  Bb4 {[%clk 0:03:00]} 7. f3 {[%clk 0:02:53]}  d5 {[%clk 0:02:59]} 8. a3 {[%clk 0:02:53]}  Bxc3+ {[%clk 0:02:58]} 9. bxc3 {[%clk 0:02:53]}  dxe4 {[%clk 0:02:59]} 10. Nxc6 {[%clk 0:02:41]}  Qxd1+ {[%clk 0:02:56]} 11. Rxd1 {[%clk 0:02:42]}  bxc6 {[%clk 0:02:56]} 12. fxe4 {[%clk 0:02:33]}  Nxe4 {[%clk 0:02:56]} 13. Bd4 {[%clk 0:02:34]}  f6 {[%clk 0:02:54]} 14. Be2 {[%clk 0:02:23]}  e5 {[%clk 0:02:50]} 15. Be3 {[%clk 0:02:16]}  Nxc3 {[%clk 0:02:48]} 16. Rd6 {[%clk 0:02:10]}  Nxe2 {[%clk 0:02:43]} 17. Kxe2 {[%clk 0:02:11]}  Ba6+ {[%clk 0:02:43]} 18. Kf2 {[%clk 0:02:10]}  Bb5 {[%clk 0:02:33]} 19. Bc5 {[%clk 0:02:05]}  O-O {[%clk 0:02:25]} 20. Rd7 {[%clk 0:02:03]}  Rfd8 {[%clk 0:02:19]} 21. Rhd1 {[%clk 0:02:00]}  Rxd7 {[%clk 0:02:18]} 22. Rxd7 {[%clk 0:02:01]}  a5 {[%clk 0:02:14]} 23. h4 {[%clk 0:01:55]}  Ba4 {[%clk 0:02:12]} 24. c3 {[%clk 0:01:50]}  Rb8 {[%clk 0:02:13]} 25. Ra7 {[%clk 0:01:42]}  Rb2+ {[%clk 0:02:07]} 26. Kg1 {[%clk 0:01:38]}  Rc2 {[%clk 0:01:55]} 27. Rxa5 {[%clk 0:01:34]}  Rxc3 {[%clk 0:01:53]} 28. Bb4 {[%clk 0:01:25]}  Rc1+ {[%clk 0:01:50]} 29. Kh2 {[%clk 0:01:24]}  Bb3 {[%clk 0:01:48]} 30. h5 {[%clk 0:01:00]}  g6 {[%clk 0:01:26]} 31. h6 {[%clk 0:00:50]}  Rc4 {[%clk 0:01:00]} 32. Kg3 {[%clk 0:00:38]}  f5 {[%clk 0:00:45]} 33. Ra8+ {[%clk 0:00:35]}  Kf7 {[%clk 0:00:45]} 34. Ra7+ {[%clk 0:00:35]}  Kg8 {[%clk 0:00:43]} 35. Rg7+ {[%clk 0:00:30]}  Kh8 {[%clk 0:00:43]} 36. Be7 {[%clk 0:00:20]}  Rc3+ {[%clk 0:00:22]} 37. Kh2 {[%clk 0:00:20]}  Rd3 {[%clk 0:00:17]} 38. Bf6 {[%clk 0:00:19]}  Rd6 {[%clk 0:00:17]} 39. Bxe5 {[%clk 0:00:15]}  Re6 {[%clk 0:00:17]} 40. Re7+ {[%clk 0:00:14]}  Rxe5 {[%clk 0:00:17]} 41. Rxe5 {[%clk 0:00:15]}  Kg8 {[%clk 0:00:15]} 42. Kg3 {[%clk 0:00:14]}  Kf7 {[%clk 0:00:14]} 43. Kf4 {[%clk 0:00:14]}  Bd5 {[%clk 0:00:14]} 44. Re3 {[%clk 0:00:11]}  Kf6 {[%clk 0:00:13]} 45. Rg3 {[%clk 0:00:12]}  Be4 {[%clk 0:00:13]} 46. Rg5 {[%clk 0:00:12]}  c5 {[%clk 0:00:13]} 47. g4 {[%clk 0:00:12]}  c4 {[%clk 0:00:13]} 48. gxf5 {[%clk 0:00:12]}  Bxf5 {[%clk 0:00:11]} 49. Rg3 {[%clk 0:00:12]}  g5+ {[%clk 0:00:08]} 50. Rxg5 {[%clk 0:00:11]}  Bd3 {[%clk 0:00:05]} 51. Rg3 {[%clk 0:00:08]}  Bb1 {[%clk 0:00:03]} 52. Ke3 {[%clk 0:00:08]}  c3 {[%clk 0:00:02]} 53. Kd4 {[%clk 0:00:07]}  c2 {[%clk 0:00:03]} 54. Rc3 {[%clk 0:00:08]}  Kg6 {[%clk 0:00:03]} 55. a4 {[%clk 0:00:08]}  Kxh6 {[%clk 0:00:03]} 56. a5 {[%clk 0:00:08]}  Ba2 {[%clk 0:00:03]} 57. a6 {[%clk 0:00:08]} 1-0


[Site "https://www.chess.com"]

[Event "Titled Tuesday Blitz December 20 Late 2022"]
[White "Curtis, John"]
[Black "Rian, Kapriaga"]
[WhiteFideId "3200256"]
[BlackFideId "7103263"]
[WhiteElo "2203"]
[BlackElo "2336"]
[Result "1/2-1/2"]
[Round "09"]
[TimeControl "180+1"]
[Date "2022.12.21"]
[WhiteClock "0:00:55"]
[BlackClock "0:00:08"]

1. e4 {[%clk 0:02:59]}  c6 {[%clk 0:02:51]} 2. d4 {[%clk 0:02:59]}  d5 {[%clk 0:02:51]} 3. exd5 {[%clk 0:03:00]}  cxd5 {[%clk 0:02:51]} 4. c4 {[%clk 0:03:01]}  Nf6 {[%clk 0:02:49]} 5. Nc3 {[%clk 0:02:57]}  Nc6 {[%clk 0:02:49]} 6. Nf3 {[%clk 0:02:49]}  Bg4 {[%clk 0:02:48]} 7. cxd5 {[%clk 0:02:49]}  Nxd5 {[%clk 0:02:48]} 8. Bc4 {[%clk 0:02:49]}  e6 {[%clk 0:02:44]} 9. O-O {[%clk 0:02:46]}  Nb6 {[%clk 0:02:39]} 10. Bb5 {[%clk 0:02:46]}  Be7 {[%clk 0:02:32]} 11. h3 {[%clk 0:02:43]}  Bh5 {[%clk 0:02:28]} 12. Bxc6+ {[%clk 0:02:41]}  bxc6 {[%clk 0:02:28]} 13. g4 {[%clk 0:02:41]}  Bg6 {[%clk 0:02:25]} 14. Ne5 {[%clk 0:02:41]}  Rc8 {[%clk 0:02:23]} 15. Be3 {[%clk 0:02:34]}  O-O {[%clk 0:02:21]} 16. Qf3 {[%clk 0:02:32]}  Nd5 {[%clk 0:02:19]} 17. Rac1 {[%clk 0:02:24]}  Bd6 {[%clk 0:02:15]} 18. Ne4 {[%clk 0:02:13]}  Bxe4 {[%clk 0:01:58]} 19. Qxe4 {[%clk 0:02:13]}  Bxe5 {[%clk 0:01:50]} 20. dxe5 {[%clk 0:02:09]}  Qa5 {[%clk 0:01:39]} 21. Bc5 {[%clk 0:01:55]}  Rfd8 {[%clk 0:01:28]} 22. a3 {[%clk 0:01:52]}  Qb5 {[%clk 0:01:25]} 23. b4 {[%clk 0:01:43]}  a5 {[%clk 0:01:24]} 24. Bd6 {[%clk 0:01:40]}  axb4 {[%clk 0:01:22]} 25. axb4 {[%clk 0:01:40]}  Ra8 {[%clk 0:01:02]} 26. Rc5 {[%clk 0:01:17]}  Qxb4 {[%clk 0:00:59]} 27. Qxb4 {[%clk 0:01:13]}  Nxb4 {[%clk 0:00:58]} 28. Rc4 {[%clk 0:01:13]}  Nd5 {[%clk 0:00:51]} 29. Rxc6 {[%clk 0:01:12]}  Ra2 {[%clk 0:00:47]} 30. Rfc1 {[%clk 0:01:08]}  h6 {[%clk 0:00:45]} 31. Rc8 {[%clk 0:01:08]}  Rxc8 {[%clk 0:00:45]} 32. Rxc8+ {[%clk 0:01:07]}  Kh7 {[%clk 0:00:45]} 33. Rf8 {[%clk 0:01:07]}  Kg6 {[%clk 0:00:44]} 34. h4 {[%clk 0:01:03]}  Ra7 {[%clk 0:00:38]} 35. Kg2 {[%clk 0:01:01]}  h5 {[%clk 0:00:38]} 36. gxh5+ {[%clk 0:00:56]}  Kxh5 {[%clk 0:00:38]} 37. Rh8+ {[%clk 0:00:56]}  Kg6 {[%clk 0:00:36]} 38. h5+ {[%clk 0:00:55]}  Kf5 {[%clk 0:00:33]} 39. Rh7 {[%clk 0:00:55]}  Nf4+ {[%clk 0:00:32]} 40. Kh2 {[%clk 0:00:48]}  Ra2 {[%clk 0:00:30]} 41. Bc5 {[%clk 0:00:47]}  Ra5 {[%clk 0:00:13]} 42. Be3 {[%clk 0:00:45]}  Rxe5 {[%clk 0:00:13]} 43. Rxg7 {[%clk 0:00:46]}  Nxh5 {[%clk 0:00:11]} 44. Rxf7+ {[%clk 0:00:46]}  Kg6 {[%clk 0:00:11]} 45. Rf8 {[%clk 0:00:46]}  Rf5 {[%clk 0:00:10]} 46. Re8 {[%clk 0:00:45]}  Kf7 {[%clk 0:00:09]} 47. Rh8 {[%clk 0:00:44]}  Nf6 {[%clk 0:00:09]} 48. Ra8 {[%clk 0:00:43]}  Ng4+ {[%clk 0:00:09]} 49. Kg3 {[%clk 0:00:43]}  Nxe3 {[%clk 0:00:09]} 50. fxe3 {[%clk 0:00:44]}  Kf6 {[%clk 0:00:10]} 51. e4 {[%clk 0:00:44]}  Rb5 {[%clk 0:00:07]} 52. Kf4 {[%clk 0:00:43]}  e5+ {[%clk 0:00:07]} 53. Kg4 {[%clk 0:00:44]}  Rb3 {[%clk 0:00:06]} 54. Ra6+ {[%clk 0:00:44]}  Kf7 {[%clk 0:00:06]} 55. Kf5 {[%clk 0:00:44]}  Rb5 {[%clk 0:00:05]} 56. Rf6+ {[%clk 0:00:44]}  Ke7 {[%clk 0:00:05]} 57. Re6+ {[%clk 0:00:45]}  Kd7 {[%clk 0:00:04]} 58. Rxe5 {[%clk 0:00:45]}  Rxe5+ {[%clk 0:00:05]} 59. Kxe5 {[%clk 0:00:45]}  Ke7 {[%clk 0:00:05]} 60. Kf5 {[%clk 0:00:45]}  Kf7 {[%clk 0:00:05]} 61. Kf4 {[%clk 0:00:45]}  Ke6 {[%clk 0:00:05]} 62. e5 {[%clk 0:00:46]}  Ke7 {[%clk 0:00:05]} 63. Kf5 {[%clk 0:00:46]}  Kf7 {[%clk 0:00:05]} 64. Kf4 {[%clk 0:00:47]}  Ke6 {[%clk 0:00:05]} 65. Ke4 {[%clk 0:00:48]}  Ke7 {[%clk 0:00:05]} 66. Ke3 {[%clk 0:00:48]}  Ke6 {[%clk 0:00:05]} 67. Ke4 {[%clk 0:00:48]}  Ke7 {[%clk 0:00:06]} 68. Kd5 {[%clk 0:00:49]}  Kd7 {[%clk 0:00:06]} 69. e6+ {[%clk 0:00:50]}  Ke7 {[%clk 0:00:06]} 70. Ke5 {[%clk 0:00:51]}  Ke8 {[%clk 0:00:07]} 71. Kf6 {[%clk 0:00:51]}  Kf8 {[%clk 0:00:07]} 72. Kf5 {[%clk 0:00:52]}  Ke8 {[%clk 0:00:07]} 73. Ke4 {[%clk 0:00:52]}  Ke7 {[%clk 0:00:07]} 74. Kd5 {[%clk 0:00:52]}  Ke8 {[%clk 0:00:07]} 75. Kd4 {[%clk 0:00:51]}  Ke7 {[%clk 0:00:07]} 76. Ke5 {[%clk 0:00:52]}  Ke8 {[%clk 0:00:08]} 77. Kf6 {[%clk 0:00:53]}  Kf8 {[%clk 0:00:08]} 78. e7+ {[%clk 0:00:54]}  Ke8 {[%clk 0:00:08]} 79. Ke6 {[%clk 0:00:55]} 1/2-1/2


[Site "https://www.chess.com"]

[Event "Titled Tuesday Blitz December 20 Late 2022"]
[White "Dias, Joao Batista"]
[Black "Bolanos, Fernando"]
[WhiteFideId "2108240"]
[BlackFideId "3304094"]
[WhiteElo "1898"]
[BlackElo "2166"]
[Result "0-1"]
[Round "09"]
[TimeControl "180+1"]
[Date "2022.12.21"]
[WhiteClock "0:01:48"]
[BlackClock "0:01:40"]

1. e4 {[%clk 0:02:25]}  c5 {[%clk 0:02:58]} 2. Nf3 {[%clk 0:02:25]}  Nc6 {[%clk 0:02:57]} 3. d4 {[%clk 0:02:25]}  cxd4 {[%clk 0:02:58]} 4. Nxd4 {[%clk 0:02:26]}  Nf6 {[%clk 0:02:58]} 5. Nxc6 {[%clk 0:02:26]}  bxc6 {[%clk 0:02:58]} 6. Bd3 {[%clk 0:02:27]}  e5 {[%clk 0:02:58]} 7. O-O {[%clk 0:02:26]}  Bc5 {[%clk 0:02:55]} 8. b3 {[%clk 0:02:26]}  O-O {[%clk 0:02:55]} 9. Bb2 {[%clk 0:02:26]}  d6 {[%clk 0:02:55]} 10. Nd2 {[%clk 0:02:26]}  Bg4 {[%clk 0:02:49]} 11. Qe1 {[%clk 0:02:26]}  Be6 {[%clk 0:02:27]} 12. Nc4 {[%clk 0:02:26]}  Nh5 {[%clk 0:02:16]} 13. Bc1 {[%clk 0:02:17]}  Qh4 {[%clk 0:02:12]} 14. g3 {[%clk 0:02:13]}  Nxg3 {[%clk 0:02:02]} 15. hxg3 {[%clk 0:02:12]}  Qxg3+ {[%clk 0:02:02]} 16. Kh1 {[%clk 0:02:12]}  Qh3+ {[%clk 0:02:02]} 17. Kg1 {[%clk 0:02:12]}  f5 {[%clk 0:01:52]} 18. Be3 {[%clk 0:01:48]}  f4 {[%clk 0:01:47]} 19. Bxc5 {[%clk 0:01:48]}  f3 {[%clk 0:01:40]} 0-1


[Site "https://www.chess.com"]

[Event "Titled Tuesday Blitz December 20 Late 2022"]
[White "Figorito, Nick"]
[Black "Sanchez Alvares, Kelvin Antonio"]
[WhiteFideId "30923689"]
[BlackFideId "3906680"]
[WhiteElo "2413"]
[BlackElo "2217"]
[Result "1-0"]
[Round "09"]
[TimeControl "180+1"]
[Date "2022.12.21"]
[WhiteClock "0:00:26"]
[BlackClock "0:02:02"]

1. Nf3 {[%clk 0:03:00]}  d5 {[%clk 0:02:51]} 2. g3 {[%clk 0:03:01]}  Nf6 {[%clk 0:02:50]} 3. Bg2 {[%clk 0:03:01]}  c6 {[%clk 0:02:50]} 4. O-O {[%clk 0:03:02]}  Nbd7 {[%clk 0:02:51]} 5. d4 {[%clk 0:03:02]}  e6 {[%clk 0:02:50]} 6. c4 {[%clk 0:03:03]}  dxc4 {[%clk 0:02:51]} 7. a4 {[%clk 0:03:01]}  a5 {[%clk 0:02:50]} 8. Na3 {[%clk 0:02:53]}  Bxa3 {[%clk 0:02:50]} 9. Rxa3 {[%clk 0:02:52]}  O-O {[%clk 0:02:49]} 10. Qc2 {[%clk 0:02:51]}  b5 {[%clk 0:02:49]} 11. axb5 {[%clk 0:02:41]}  cxb5 {[%clk 0:02:50]} 12. Ne5 {[%clk 0:02:37]}  Nxe5 {[%clk 0:02:50]} 13. Bxa8 {[%clk 0:02:35]}  Qxd4 {[%clk 0:02:48]} 14. Rxa5 {[%clk 0:02:17]}  Qb6 {[%clk 0:02:47]} 15. Ra1 {[%clk 0:02:12]}  Nd5 {[%clk 0:02:47]} 16. Bd2 {[%clk 0:01:48]}  Bd7 {[%clk 0:02:40]} 17. Qe4 {[%clk 0:01:43]}  Qc7 {[%clk 0:02:33]} 18. Bf4 {[%clk 0:01:28]}  Nxf4 {[%clk 0:02:30]} 19. Qxf4 {[%clk 0:01:29]}  Qc5 {[%clk 0:02:26]} 20. Bg2 {[%clk 0:01:23]}  Ng6 {[%clk 0:02:22]} 21. Qd2 {[%clk 0:01:19]}  Bc6 {[%clk 0:02:17]} 22. Bxc6 {[%clk 0:01:19]}  Qxc6 {[%clk 0:02:18]} 23. Qb4 {[%clk 0:01:19]}  h5 {[%clk 0:02:17]} 24. Ra5 {[%clk 0:01:14]}  Rb8 {[%clk 0:02:16]} 25. Rd1 {[%clk 0:01:07]}  h4 {[%clk 0:02:15]} 26. Rd6 {[%clk 0:01:07]}  Qe4 {[%clk 0:02:14]} 27. Qd2 {[%clk 0:00:47]}  h3 {[%clk 0:02:10]} 28. f3 {[%clk 0:00:46]}  Qb1+ {[%clk 0:02:10]} 29. Kf2 {[%clk 0:00:45]}  Qh1 {[%clk 0:02:10]} 30. Rd8+ {[%clk 0:00:40]}  Rxd8 {[%clk 0:02:10]} 31. Qxd8+ {[%clk 0:00:40]}  Kh7 {[%clk 0:02:10]} 32. Ke3 {[%clk 0:00:39]}  Qxh2 {[%clk 0:02:05]} 33. Rxb5 {[%clk 0:00:28]}  Qg1+ {[%clk 0:02:04]} 34. Kd2 {[%clk 0:00:26]}  h2 {[%clk 0:02:02]} 35. Rh5# {[%clk 0:00:26]} 1-0


[Site "https://www.chess.com"]